Cogmind - Beta 15 @@@ ROGUE MODE // 2025.07.06 @ 22:54:29 Player: maykstuff Result: Destroyed by G-47 Trooper with Particle Gun Performance ------------- Evolutions (3) 1500 Regions Visited (4) 800 Robots Destroyed (89) 445 Value Destroyed (2351) 2351 Prototype IDs (4) 80 Alien Tech Used (0) 0 Bonus (34) 34 TOTAL SCORE: 5210 Bonus ------- High Alert Combat Kills 34 Cogmind --------- Core Integrity 0/700 Matter 102/300 Energy 99/100 System Corruption 2% Temperature Cool (9) Movement Core (50) Location -7/Factory Parts ------- > --- POWER (2) -------- (None) > --- PROPULSION (4) --- (None) > --- UTILITY (4) ------ (None) > --- WEAPON (3) ------- (None) > --- INVENTORY (5) ---- Backup Power III Target Analyzer Datajack Improved Datajack Peak State ------------ > --- POWER ------------ Light Deuterium Engine Light Nuclear Core > --- PROPULSION ------- Light Treads Light Treads Improved Treads Armored Treads > --- UTILITY ---------- Medium Storage Unit Improved Signal Interpreter Medium Reflective Plating Improved Shield Generator > --- WEAPON ----------- Beam Rifle Enhanced Autogun Enhanced Autogun > --- INVENTORY -------- Target Analyzer Datajack Improved Datajack [Rating: 35] Favorites ----------- Power Improved Ion Engine Engine Improved Ion Engine Power Core Nuclear Core Propulsion Armored Treads Treads Armored Treads Leg Aluminum Leg Wheel Wheel Utility Small Storage Unit Device Heat Sink Storage Small Storage Unit Processor Improved Signal Interpreter Protection Medium Reflective Plating Weapon Autogun Energy Gun Shock Rifle Energy Cannon Beam Cannon Ballistic Gun Autogun Launcher Rocket Launcher Build | -11 -10 -9 -8 -7 ------- Run | Yrd Mat Mat Mat Fac Slots Evolved 6 | . . 2 2 2 Power 1 | . . . . 1 Propulsion 2 | . . 1 1 . Utility 2 | . . 1 . 1 Weapon 1 | . . . 1 . Parts Attached 45 | 4 6 15 13 7 Power 8 | 1 1 3 2 1 Engine 6 | 1 1 2 2 . Core 2 | . . 1 . 1 Reactor . | . . . . . Propulsion 13 | 2 1 6 3 1 Treads 9 | . . 6 3 . Leg 1 | . . . . 1 Wheel 3 | 2 1 . . . Hover . | . . . . . Flight . | . . . . . Utility 9 | . 2 2 4 1 Device 4 | . 1 1 2 . Storage 3 | . 1 1 1 . Processor 1 | . . . . 1 Hackware . | . . . . . Protection 1 | . . . 1 . Artifact . | . . . . . Weapon 15 | 1 2 4 4 4 Energy Gun 4 | . . 3 1 . Energy Cannon 1 | . 1 . . . Ballistic Gun 4 | 1 . 1 2 . Ballistic Cannon . | . . . . . Launcher 6 | . 1 . 1 4 Special Weapon . | . . . . . Impact Weapon . | . . . . . Slashing Weapon . | . . . . . Piercing Weapon . | . . . . . Special Melee Weapon . | . . . . . Unidentified Prototypes 2 | . . 1 1 . Parts Lost 33 | . 3 7 10 13 Power 4 | . 1 1 1 1 Propulsion 9 | . 1 3 2 3 Utility 8 | . . 1 3 4 Weapon 12 | . 1 2 4 5 Highest Loss Streak 8 | . 2 2 7 8 To Critical Strikes 2 | . . 1 1 . Average Backups 6 | . 4 6 7 3 Power . | . . 1 . . Propulsion . | . . 1 . . Utility 1 | . . . 2 1 Weapon 2 | . 1 2 2 . Tool/Special . | . . . . . Unused Backups 5 | . . 1 . 4 Power 1 | . . . . 1 Propulsion . | . . . . . Utility 1 | . . . . 1 Weapon 1 | . . 1 . . Tool/Special 2 | . . . . 2 Average Slot Usage (%) 80 | . 78 87 84 54 Engine 7 | . 12 8 5 4 Core 1 | . . 1 1 1 Treads 23 | . . 28 31 10 Wheel 3 | . 27 2 . . Device 8 | . 9 10 6 5 Storage 13 | . 6 15 16 5 Protection 1 | . . . . 5 Energy Gun 5 | . . 6 5 4 Energy Cannon 1 | . 1 2 . . Ballistic Gun 10 | . 14 11 10 4 Launcher 2 | . 5 . 5 1 Peak Build Rating 35 | 4 7 21 28 35 Average Rating 16 | 3 5 15 21 20 On Entrance 11 | . 4 6 21 28 Naked Turns 20 | . . . . 20 Heaviest Build 40 | 4 15 21 32 40 Greatest Support 86 | 20 26 60 86 83 Greatest Overweight (x) 7 | . . 1 . 7 Average Overweight (x) . | . . . . . Largest Inventory Capacity 10 | 5 8 8 10 10 Average Capacity 8 | 5 6 8 9 8 Most Carried 10 | 2 5 8 10 5 Average Carried 6 | . 4 7 7 3 Final Capacity 10 | 5 8 8 10 5 Final Carried 8 | 2 3 8 6 4 Class Distribution -------------------- 78% | Mutant 9% | Scavenger-Gunner 6% | Gunner 3% | Scavenger-Tank Dominant Class ---------------- Mutant | -10/Materials Mutant | -9/Materials Mutant | -8/Materials Mutant | -7/Factory Resources | -11 -10 -9 -8 -7 ----------- Run | Yrd Mat Mat Mat Fac Matter Collected 1431 | 250 35 526 361 259 Remotely . | . . . . . Salvage Created 2232 | 48 128 977 713 366 Parts 163 | 1 18 73 45 26 Haulers Intercepted 1 | . . . 1 . Recyclers Shooed 2 | . 1 1 . . Parts Field Recycled . | . . . . . Retrieved Matter . | . . . . . Parts Self-Destructed . | . . . . . Prevented . | . . . . . Kills | -11 -10 -9 -8 -7 ------- Run | Yrd Mat Mat Mat Fac Combat Hostiles Destroyed 67 | 1 9 23 24 10 Guns 37 | 1 1 20 12 3 Cannons 3 | . . 3 . . AOE 27 | . 8 . 12 7 Classes Destroyed 13 | 1 3 2 4 3 Worker 8 | . 2 1 3 2 Builder 5 | . . . 3 2 Tunneler 2 | . . . 1 1 Hauler 1 | . . . 1 . Recycler 1 | . . . 1 . Watcher 5 | . 1 2 2 . Swarmer 26 | . 5 5 13 3 Grunt 30 | 1 4 12 9 4 Brawler 1 | . . 1 . . Duelist 1 | . . . . 1 Sentry 7 | . . 5 2 . Hunter 1 | . . . . 1 Programmer 1 | . . . . 1 Best Kill Streak 8 | 1 5 3 8 8 Combat Bots Only 6 | 1 4 3 6 3 Max Kills in Single Turn 3 | 1 3 2 3 3 Gunslinging 1 | . . . 1 . Exploded 3 | . 3 . 2 3 Melee . | . . . . . Uniques/NPCs Destroyed . | . . . . . Combat | -11 -10 -9 -8 -7 -------- Run | Yrd Mat Mat Mat Fac Hostile Shots Fired 493 | 3 50 170 124 146 Missed 143 | . 16 55 37 35 Hits 350 | 3 34 115 87 111 Melee 2 | . . 1 . 1 Projectile 348 | 3 34 114 87 110 Critical Strikes 14 | . . 4 7 3 Damage Taken 4623 | 36 365 1586 1012 1624 Core 1161 | 12 70 220 159 700 Absorbed by Shields 193 | . . . . 193 Ignored by Resistances 165 | . . . . 165 Core Remaining (%) 69 | 95 67 45 71 . Volleys Fired 198 | 10 20 82 58 28 Largest 3 | 1 2 2 3 3 Hottest 117 | 20 80 80 106 117 Shots Fired 356 | 10 24 153 113 56 Gun 282 | 10 8 134 87 43 Cannon 21 | . 2 19 . . Launcher 53 | . 14 . 26 13 Special . | . . . . . Kinetic 180 | 10 8 82 58 22 Thermal 65 | . 2 42 . 21 Explosive 53 | . 14 . 26 13 Electromagnetic 58 | . . 29 29 . Robot Hit Streak 17 | 5 5 17 8 10 Robot Miss Streak 6 | 2 3 5 6 2 Penetration Max . | . . . . . Secondary Targets 3 | . . 1 1 1 Max Gunslinging Chain 1 | . . 1 1 1 Shots Hit Robots 209 | 6 14 102 54 33 Core Hits 155 | 3 22 45 53 32 Critical Kills . | . . . . . Critical Parts Destroyed . | . . . . . Critical Strikes 7 | . . 1 2 4 Burn 5 | . . 1 . 4 Destroy 1 | . . . 1 . Corrupt 1 | . . . 1 . Melee Attacks . | . . . . . Impact . | . . . . . Slashing . | . . . . . Piercing . | . . . . . Sneak Attacks . | . . . . . Combat Hostiles . | . . . . . Follow-up Attacks . | . . . . . Damage Inflicted 6221 | 47 837 1558 2312 1467 Guns 2684 | 47 20 1234 872 511 Cannons 244 | . 17 227 . . Explosions 3283 | . 800 87 1440 956 Melee . | . . . . . Ramming 10 | . . 10 . . Kinetic 1559 | 47 20 607 605 280 Thermal 903 | . 17 547 85 254 Explosive 3051 | . 800 . 1355 896 Electromagnetic 698 | . . 394 267 37 Impact . | . . . . . Slashing . | . . . . . Piercing . | . . . . . Highest Corruption 4 | . 4 3 . 2 Average Corruption 2 | . 3 1 . 1 Corruption Purged . | . . . . . Corruption Blocked . | . . . . . Effects 13 | . 5 5 . 3 Message Errors 1 | . . 1 . . Matter Fused 4 | . 1 1 . 2 Heat Flow Errors 1 | . 1 . . . Energy Discharges 2 | . . 1 . 1 Data Loss (minor) 1 | . . 1 . . Data Loss (major) 2 | . 1 1 . . Misfires 2 | . 2 . . . Overload Shots . | . . . . . Overflow Damage 251 | . . 113 71 67 Projectiles . | . . . . . Explosions 251 | . . 113 71 67 Melee . | . . . . . Knockbacks . | . . . . . Impact . | . . . . . Kinetic . | . . . . . Secondary . | . . . . . Self-Inflicted Damage 276 | . 36 126 66 48 Shots 9 | . 3 2 2 2 Rammed 2 | . . 1 1 . Targets Rammed 2 | . . 1 1 . Kicked . | . . . . . Crushed . | . . . . . Highest Temperature 622 | 6 173 173 81 622 Average Temperature 93 | 6 46 30 37 283 Received Heat Transfer 1717 | 18 105 657 351 586 Effects 23 | . . . . 23 Shutdowns 6 | . . . . 6 Energy Bleed 1 | . . . . 1 Matter Decay 2 | . . . . 2 Short Circuit 6 | . . . . 6 Damage (minor) 1 | . . . . 1 Damage (major) 4 | . . . . 4 Damage (core) 3 | . . . . 3 Siege Activations . | . . . . . Martial Activations . | . . . . . Shielding Activations . | . . . . . Robots Disrupted 1 | . . . . 1 Combat Hostiles . | . . . . . Robots Corrupted . | . . . . . Combat Hostiles . | . . . . . Parts Fried 1 | . . 1 . . Impact Corruptions . | . . . . . Robots Melted . | . . . . . Combat Hostiles . | . . . . . Parts Melted 5 | . . 4 1 . Heat Transferred 2322 | . 37 1247 100 938 Parts Sabotaged . | . . . . . Parts Stolen . | . . . . . Parts Stripped . | . . . . . Power Chain Reactions 2 | . . 1 . 1 Alert | -11 -10 -9 -8 -7 ------- Run | Yrd Mat Mat Mat Fac Maximum Alert Level 2 | . 1 1 2 1 Low Security (%) 76 | 100 88 74 66 95 Level 1 14 | . 11 25 8 4 Level 2 8 | . . . 25 . Level 3 . | . . . . . Level 4 . | . . . . . Level 5 . | . . . . . High Security . | . . . . . Max Security . | . . . . . Peak Influence 493 | 20 296 287 493 254 Initial 196 | . 6 116 114 196 Average 163 | 2 77 154 222 135 Influence Increases 2385 | 20 373 727 859 406 Destroy 0b10 Robot/C 1340 | 20 180 460 480 200 Destroy 0b10 Robot/NC 110 | . 15 15 55 25 Destroy Leader 312 | . 42 114 106 50 Successful Hack 28 | . 7 14 2 5 Disable Machine 210 | . 30 15 105 60 Destroy Structure 295 | . 84 34 111 66 Lose Combat Pursuer 90 | . 15 75 . . Influence Decreases 2149 | 10 107 732 697 603 Entered New Map 558 | . 4 160 157 237 Time Decay 1271 | 10 73 502 440 246 Lost Part 320 | . 30 70 100 120 Squads Dispatched 13 | . 2 3 5 3 Investigation 4 | . 1 1 1 1 Extermination 1 | . . . . 1 Reinforcement 5 | . 1 2 1 1 Assault . | . . . . . Garrison 3 | . . . 3 . Intercept . | . . . . . Searches Triggered . | . . . . . Construction Impeded 2 | . . . 1 1 Haulers Reinforced . | . . . . . Active Scanning Responses . | . . . . . Cargo Convoy Interrupts . | . . . . . Stealth | -11 -10 -9 -8 -7 --------- Run | Yrd Mat Mat Mat Fac Distress Signals 8 | . 2 4 2 . Communications Jammed . | . . . . . Distress Signals . | . . . . . Times Spotted 101 | 1 18 36 28 18 Peak Tracking Total 8 | 1 8 5 6 4 Tactical Retreats 4 | . 1 3 . . Traps | -11 -10 -9 -8 -7 ------- Run | Yrd Mat Mat Mat Fac Traps Triggered 6 | . 2 3 1 . Indirectly . | . . . . . Trap Hack Attempts . | . . . . . Triggered . | . . . . . Disarmed . | . . . . . Reprogrammed . | . . . . . Reused . | . . . . . Traps Extracted . | . . . . . Installed . | . . . . . Triggered . | . . . . . Machines | -11 -10 -9 -8 -7 ---------- Run | Yrd Mat Mat Mat Fac Machines Disabled 14 | . 2 1 7 4 Max in Single Turn 2 | . 1 1 2 1 Machines Repaired . | . . . . . Machines Dismantled . | . . . . . Machines Sabotaged . | . . . . . Overloaded Fab Kills . | . . . . . Hacking | -11 -10 -9 -8 -7 --------- Run | Yrd Mat Mat Mat Fac Machines Accessed 11 | . 3 5 2 1 Terminals 9 | . 2 4 2 1 Fabricators . | . . . . . Repair Stations . | . . . . . Recycling Units 2 | . 1 1 . . Scanalyzers . | . . . . . Garrison Access . | . . . . . Total Hacks 26 | . 5 11 7 3 Successful 17 | . 4 6 5 2 Failed 9 | . 1 5 2 1 Catastrophic . | . . . . . Database Lockouts . | . . . . . Manual 4 | . . . 3 1 Terminals 24 | . 4 10 7 3 Fabricators . | . . . . . Repair Stations . | . . . . . Recycling Units 2 | . 1 1 . . Scanalyzers . | . . . . . Garrison Access . | . . . . . Terminal Hacks 15 | . 3 5 5 2 Record 7 | . . 3 3 1 Robot Analysis 1 | . 1 . . . Prototype ID Bank 1 | . . 1 . . Branch Access Points 1 | . . 1 . . Locate Traps 1 | . 1 . . . Recall Investigation 1 | . . . 1 . Registered Components 1 | . 1 . . . Zone Layout 2 | . . . 1 1 Fabricator Hacks . | . . . . . Repair Station Hacks . | . . . . . Recycling Unit Hacks 2 | . 1 1 . . Report Inventory 2 | . 1 1 . . Scanalyzer . | . . . . . Garrison Access Hacks . | . . . . . Unauthorized Hacks . | . . . . . Terminals . | . . . . . Fabricators . | . . . . . Repair Stations . | . . . . . Recycling Units . | . . . . . Scanalyzers . | . . . . . Garrison Access . | . . . . . Data Cores Recovered . | . . . . . Used . | . . . . . Hacking Detections 7 | . 2 3 1 1 Full Trace Events 3 | . 1 1 . 1 Feedback Events 1 | . . 1 . . Corruption 1 | . . 1 . . Feedback Blocked . | . . . . . Robot Schematics Acquired . | . . . . . Robots Built . | . . . . . Authchips . | . . . . . Time . | . . . . . Total Robot Build Rating . | . . . . . Part Schematics Acquired . | . . . . . Parts Built . | . . . . . Authchips . | . . . . . Time . | . . . . . Total Part Build Rating . | . . . . . Parts Repaired . | . . . . . Time . | . . . . . Parts Recycled . | . . . . . Recycled Matter . | . . . . . Retrieved Matter . | . . . . . Retrieved Components . | . . . . . Parts Scanalyzed . | . . . . . Part Schematics Acquired . | . . . . . Parts Damaged . | . . . . . Bothacking | -11 -10 -9 -8 -7 ------------ Run | Yrd Mat Mat Mat Fac Used RIF Installer . | . . . . . Robots Hacked . | . . . . . Non-combat . | . . . . . Combat . | . . . . . Robot Hacks Applied . | . . . . . Relay Couplers Released . | . . . . . Fabnet Peak Effective % . | . . . . . Robots Rewired . | . . . . . Allies Hacked . | . . . . . Hacks Repelled . | . . . . . Allies | -11 -10 -9 -8 -7 -------- Run | Yrd Mat Mat Mat Fac Total Allies . | . . . . . Largest Group . | . . . . . Highest-Rated Group . | . . . . . Highest-Rated Ally . | . . . . . Total Orders . | . . . . . Ally Attacks . | . . . . . Total Damage . | . . . . . Kills . | . . . . . Allies Corrupted . | . . . . . Allies Melted . | . . . . . Intel | -11 -10 -9 -8 -7 ------- Run | Yrd Mat Mat Mat Fac Active Infowar (turns) 347 | . 188 159 . . Seismic 347 | . 188 159 . . Robot Analysis Total 1 | . 1 . . . Derelict Logs Recovered . | . . . . . Drone Launches . | . . . . . Drone Recoveries . | . . . . . Exploration | -11 -10 -9 -8 -7 ------------- Run | Yrd Mat Mat Mat Fac Turns Passed 3345 | 82 279 1342 1095 547 Spaces Moved 1823 | 76 263 715 536 233 Core 75 | 21 . . . 54 Treads 1245 | . . 563 536 146 Legs 33 | . . . . 33 Wheels 470 | 55 263 152 . . Hover . | . . . . . Flight . | . . . . . Fastest Speed 50 | 50 80 80 162 50 Average Speed 147 | 71 85 150 166 191 Slowest Speed 400 | 80 90 170 170 400 Overloaded Moves . | . . . . . Propulsion Burnouts . | . . . . . Robots Hopped . | . . . . . Potential Cave-ins . | . . . . . Cave-ins Triggered . | . . . . . Exploration Rate (%) 30 | 6 52 54 32 8 Regions Visited 4 Branch Regions . Pre-discovered Areas . | . . . . . Known Exits Taken . | . . . . . Unknown Exits Taken 4 | 1 1 1 1 . Scrap Searched . | . . . . . Spaces Dug . | . . . . . Terrain Destroyed 300 | . 89 34 109 68 Melee . | . . . . . Projectile . | . . . . . AOE 300 | . 89 34 109 68 Terrain Rammed . | . . . . . Walls Destroyed . | . . . . . Machines Disabled . | . . . . . Actions | -11 -10 -9 -8 -7 --------- Run | Yrd Mat Mat Mat Fac Total 2179 | 95 293 847 648 296 Wait 52 | . . 9 27 16 Move 1819 | 75 262 714 535 233 Hop . | . . . . . Pick Up 45 | 6 4 18 11 6 Fast Attach 4 | . 2 2 . . Attach 34 | 4 3 8 11 8 Detach . | . . . . . Swap 10 | . 2 6 2 . Drop 15 | . . 7 3 5 Fire 198 | 10 20 82 58 28 Melee . | . . . . . Ram . | . . . . . Kick . | . . . . . Crush 2 | . . 1 1 . Escape Stasis . | . . . . . Rewire . | . . . . . Trap . | . . . . . Miscellaneous . | . . . . . Route ------- -11/Scrapyard -10/Materials -9/Materials (discovered 4 exits: *Mat x2 / Min / *Sto) -8/Materials -7/Factory History --------- Turn | Location | Event 2 | -11/Scrapyard | Met Revision 17 60 | -11/Scrapyard | Discovered new exit (range 8) 83 | -11/Scrapyard | Entered Materials 300 | -10/Materials | Discovered new exit (range 16) 315 | -10/Materials | Build established: Mutant 362 | -10/Materials | Entered another Materials area 362 | -9/Materials | Evolved 2 slots: Propulsion x1, Utility x1 362 | -9/Materials | Discovered new exit (range 7) 901 | -9/Materials | Discovered new exit (range 16) 1063 | -9/Materials | Identified exit to Mines 1063 | -9/Materials | Identified exit to Storage 1624 | -9/Materials | Core integrity fell below 50% 1645 | -9/Materials | Discovered new exit (range 9) 1704 | -9/Materials | Entered another Materials area 1704 | -8/Materials | Evolved 2 slots: Propulsion x1, Weapon x1 1988 | -8/Materials | Discovered new exit (range 10) 2445 | -8/Materials | Garrison activated, responded to threat 2611 | -8/Materials | Lost 7 parts (2n2u3w) 2799 | -8/Materials | Entered Factory 2799 | -7/Factory | Evolved 2 slots: Power x1, Utility x1 3227 | -7/Factory | Core integrity fell below 50% 3293 | -7/Factory | Lost 8 parts (1p1n4u2w) 3331 | -7/Factory | Core integrity fell below 20% 3346 | -7/Factory | Destroyed by G-47 Trooper with Particle Gun Last Messages --------------- 03331_ U-05 Engineer lays Concrete. 03333_ S-27 Virus destroyed. 03333_ Neutrino Reactor explodes. 03334_ U-05 Engineer lays Concrete. 03339_ Hvy. Rocket Launcher destroyed. 03339_ U-05 Engineer lays Concrete. 03341_ Acquired 4 matter. 03342_ Acquired 6 matter. 03342_ U-05 Engineer lays Concrete. 03343_ Acquired 10 matter. 03343_ R-06 Scavenger collects Targeting Computer. 03343_ U-05 Engineer lays Concrete. 03344_ U-05 Engineer builds a Wall. 03344_ U-05 Engineer lays Concrete. 03345_ K-01 Serf collects debris. 03345_ Acquired 74 matter. 03346_ U-05 Engineer lays Concrete. [Achievement: First Step to Greatness] [Achievement: 5k Club] Map ----- +----------------------------------------------------+ | ##### #??????# # #?? | | ????#####??????# # #?? | | ???????????????# # #?? | | ???????????????# # #?? | | ???????????????################ #?? | | ?????????????????????########## #?? | | #????????????????????# #?? | | #????????????????????# #?? | | #????????????????????# """ """""" """""" +?? | | #????????????????????# "T" """""" """""" #?? | | #????????????????????# """""" """"""?????? | | #????????????????????# ^ """""" """????????? | | #????????????????????# ????????? | | #????????????????##### """""" """""" ""?????????? | | ##################T ## """""" """"""????????????? | | ????? """""" """""?????????????? | | ????? """""" """""?????????????? | | ???? ??????????? | | ????? """""" """???????????????? | | ???? """""" ""????????????????? | | ???? """""" ""????????????????? | | ????? """""" """"??????????????? | | ????####+#### ??????????????? | | ???? # """""" """"""?""?????????? | | ??? ^"""""" """""" ""?????????? | | ???? # w =! @" "" """""" """"""?????? | | ??? *!= "" """""" """""" ????? | | ??? ???# = ????? | | ?? ??# [ ???? | | ????? ?# u = ???? | | ???????? # u ???? | | ???????##### # # # # ### ????? | | ???????# [ ##?????????? | | ???????# [ """ #?????????? | | ???????# """ /! r "R" ##?????????? | | ???????# """ /! mgg " " #?????????? | | ???????# """ ! g [ #?????????? | | ???????# ##?????????? | | ???????# ! ! #?????????? | | ???????############## ### # # #?????????? | | ???????????????????? ! # # ####?????????? | | ???????????????????? #!# ###????????????? | | ??????????????????? # ??????????????? | | ??????????????????? # ?????????????? | | ?????????????????? """ """ # ??????????????? | | ?????????????????? """ """ + ?????????????? | | ??????????????????? ?"" "?" # ?????????????? | | ???????????????????? ??? ?? ?# ?????????????? | | ????????????????????????????"?? ?????????????? | | ???????????????????????????????####/?????????????? | +----------------------------------------------------+ Best States ------------- Heat Dissipation 41 Energy Generation 23 Energy Capacity 265 Matter Stores 400 Matter Capacity 400 Sight Range 16 Terrain Scan Density 10 Additional Mass Support 6 Armor Coverage 225 Resistance: TH 15 Evasion (%) 50 Recoil Reduction 4 Item Schematics ----------------- None Robot Schematics ------------------ None Fabricated ------------ Nothing Repaired ---------- Nothing Alien Tech Used ----------------- None Achievements -------------- 5k Club Crack Shot First Step to Greatness GoHome() Made in Tau Ceti IV Maybe Next Time I'll Detach My Launcher Novice Programmer One Hack Too Far Oops Remodeling Storm Trooper Troublemaker Challenges ------------ None Game ------ Seed AnalysisNullMagmablaster Manual? 0 Play Time 00:33:14 Cumulative 0.5 hours Start 2025.07.06 @ 22:20:32 End 2025.07.06 @ 22:54:29 Sessions 1 Manual Loads 0 Difficulty Rogue Special Mode None Game No. 2 Rogue 2 Adventurer 0 Explorer 0 Win Type - Total 0 Types 0/0/0/0/0/0/0/0/0/0 Lore% 0 Gallery% 3 Achievement% 6 Wizard Run 0 Options --------- Layout 1 ASCII 1 Keyboard 0 Movement Numpad Keybinds 0 Fullscreen 1 Font 20/Terminus Map View 50x35 Zoom Use 0% Tactical HUD 1 Map Filters NONE Filters NONE Steam 0 RUN: 69d73ce9-2910-495f-b3f0-5c8a25d74f92